bitfinex-derivatives/quotes_SOLF0:USTF0_20250319
["timestamp","ask_amount","ask_price","bid_price","bid_amount"]
[1742371088602,13.09440002,125.71,125.68,0.04286582]
[1742371088905,13.09440002,125.71,125.69,7.9556]
[1742371089102,0.05477548,125.71,125.69,7.9556]
[1742371090101,13.09440002,125.71,125.68,7.99906582]
[1742371090499,0.05477548,125.71,125.69,13.03962454]
[1742371090708,0.05477548,125.71,125.7,7.9552]
[1742371096213,0.05477548,125.71,125.69,7.9556]
[1742371099612,0.05477548,125.71,125.68,21.03869036]
[1742371099914,0.05477548,125.71,125.68,7.99906582]
[1742371100217,0.05477548,125.71,125.69,7.9557]
[1742371104015,0.05477548,125.71,125.68,7.99906582]
[1742371104816,40.91440002,125.71,125.68,0.04286582]
[1742371105417,40.91440002,125.71,125.68,7.99906582]
[1742371105820,13.03962454,125.69,125.68,0.04286582]
[1742371106622,35.82967548,125.71,125.68,0.04286582]
[1742371106623,13.03962454,125.7,125.68,0.04286582]
[1742371107118,40.91440002,125.71,125.68,7.99916582]
[1742371109328,40.91440002,125.71,125.69,7.9556]
[1742371109534,13.09440002,125.71,125.69,7.9556]
[1742371110834,13.09440002,125.71,125.68,0.04286582]
[1742371111035,0.05477548,125.71,125.68,0.04286582]
[1742371111334,0.05477548,125.71,125.68,27.86286582]
[1742371111535,0.05477548,125.71,125.68,40.90249036]
[1742371112128,0.05477548,125.71,125.7,7.9552]
[1742371114033,0.05477548,125.71,125.68,35.81906582]
[1742371114238,13.03962454,125.7,125.68,7.99906582]
[1742371114634,13.03962454,125.7,125.68,0.04286582]
[1742371124139,8.00947548,125.71,125.68,0.04286582]
[1742371124140,21.04910002,125.71,125.68,0.04286582]
[1742371127946,13.09440002,125.71,125.68,0.04286582]
[1742371129645,13.09440002,125.71,125.68,7.99926582]
[1742371130149,13.09440002,125.71,125.68,0.04286582]
[1742371130647,21.04900002,125.71,125.68,0.04286582]
[1742371130951,13.09440002,125.71,125.68,0.04286582]
[1742371132151,13.03962454,125.7,125.68,0.04286582]
[1742371132554,13.03962454,125.7,125.68,7.99926582]
[1742371133054,13.03962454,125.7,125.68,0.04286582]
[1742371138358,13.03962454,125.69,125.68,0.04286582]
[1742371138751,20.99552454,125.69,125.68,0.04286582]
[1742371139351,13.03962454,125.69,125.68,0.04286582]
[1742371139754,13.03962454,125.69,125.63,7.9594]
[1742371139961,13.03962454,125.66,125.63,7.9594]
[1742371140155,13.03962454,125.65,125.62,44.18921822]
[1742371140355,13.03962454,125.65,125.62,72.02921822]
[1742371140556,13.03962454,125.65,125.63,7.9595]
[1742371140953,13.09849272,125.65,125.62,72.02921822]
[1742371141159,0.05886818,125.65,125.64,7.959]
[1742371141859,0.05886818,125.65,125.63,7.9594]
[1742371142359,13.09849272,125.65,125.62,79.98911822]
[1742371143063,13.03962454,125.64,125.62,52.14911822]
[1742371144061,13.03962454,125.64,125.62,7.9599]
[1742371144560,13.03962454,125.64,125.63,7.9597]
[1742371144760,13.09849272,125.65,125.6,42.89382454]
[1742371144959,13.09849272,125.65,125.61,13.03962454]
[1742371145159,0.05886818,125.65,125.64,7.959]
[1742371158272,0.05886818,125.65,125.64,20.99862454]
[1742371158467,0.05886818,125.65,125.55,407.0676547]
[1742371158672,13.03962454,125.65,125.6,13.03962454]
[1742371158861,0.05070827,125.62,125.6,13.03962454]
[1742371159062,0.05070827,125.62,125.61,7.9609]
[1742371159973,0.05070827,125.62,125.61,21.00052454]
[1742371160567,0.05070827,125.62,125.61,7.9609]
[1742371161469,0.05070827,125.62,125.61,21.00052454]
[1742371166377,0.05070827,125.62,125.61,7.9609]
[1742371174682,0.05070827,125.62,125.6,21.00082454]
[1742371174886,0.05070827,125.62,125.6,13.03962454]
[1742371175388,0.05070827,125.62,125.61,7.9609]
[1742371176887,0.05070827,125.62,125.6,7.9611]
[1742371177281,0.05070827,125.62,125.59,40.89962454]
[1742371178088,0.05070827,125.62,125.6,7.9613]
[1742371181389,0.05070827,125.62,125.61,7.9609]
[1742371186888,13.09033281,125.62,125.56,13.03962454]
[1742371187086,13.09033281,125.62,125.56,40.89962454]
[1742371187689,21.05073281,125.62,125.58,7.9625]
[1742371187893,27.86,125.61,125.57,13.03962454]
[1742371188194,13.09033281,125.62,125.57,13.03962454]
[1742371188195,13.09033281,125.62,125.58,7.9623]
[1742371188690,13.09033281,125.62,125.59,7.9622]
[1742371188887,13.09033281,125.62,125.57,40.89962454]
[1742371189590,13.09033281,125.62,125.58,7.9623]
[1742371189791,13.09033281,125.62,125.57,13.03962454]
[1742371189987,13.09033281,125.62,125.57,40.87962454]
[1742371190189,13.09033281,125.62,125.59,7.9622]
[1742371190592,0.05070827,125.62,125.59,13.03962454]
[1742371190793,0.05070827,125.62,125.6,13.03962454]
[1742371190996,4.1546,125.66,125.61,40.89962454]
[1742371191196,17.19422454,125.66,125.63,7.9596]
[1742371191991,2.144,125.68,125.64,13.03962454]
[1742371192183,2.144,125.68,125.65,13.03962454]
[1742371192388,0.06059982,125.66,125.65,13.03962454]
[1742371193891,0.06059982,125.66,125.65,20.99802454]
[1742371194893,14.81619177,125.73,125.68,7.9565]
[1742371195189,13.03962454,125.71,125.68,7.9565]
[1742371195393,13.03962454,125.71,125.66,13.03962454]
[1742371195595,13.03962454,125.7,125.67,7.9567]
[1742371195790,13.03962454,125.7,125.66,13.03962454]
[1742371196189,0.38148139,125.69,125.66,13.09520852]
[1742371198100,0.38148139,125.69,125.67,40.91962454]
[1742371198494,0.38148139,125.69,125.68,7.9565]
[1742371199692,0.38148139,125.69,125.68,20.99612454]
[1742371200098,0.10766705,125.69,125.68,20.99612454]
[1742371200490,0.10766705,125.69,125.68,7.9565]
[1742371201599,0.05586139,125.69,125.68,7.9565]
[1742371201991,0.05586139,125.69,125.67,35.8369]
[1742371204690,0.05586139,125.69,125.67,27.88]
[1742371205696,8.01176139,125.69,125.66,0.05558398]
[1742371206494,0.05586139,125.69,125.66,0.05558398]
[1742371206694,0.05586139,125.69,125.67,27.9]
[1742371207297,0.05586139,125.69,125.68,7.9565]
[1742371209700,27.92,125.77,125.68,7.96]
[1742371209900,27.92,125.77,125.69,30.1116]
[1742371210101,27.92,125.77,125.73,7.9531]
[1742371210499,7.9505,125.78,125.73,7.9531]
[1742371210699,27.94,125.78,125.72,27.94]
[1742371210899,0.05174016,125.77,125.74,0.05897656]
[1742371211098,0.05174016,125.77,125.75,7.952]
[1742371213197,0.05174016,125.77,125.74,28.01897656]
[1742371214603,0.05174016,125.77,125.74,35.97137656]
[1742371219304,0.05174016,125.77,125.75,7.952]
[1742371220206,0.05174016,125.77,125.74,28.01897656]
[1742371222013,0.05174016,125.77,125.76,7.9514]
[1742371222207,0.05174016,125.77,125.76,35.8514]
[1742371226726,4.016e-05,125.77,125.76,43.8114]
[1742371231115,4.016e-05,125.77,125.76,45.2713448]
[1742371231718,4.016e-05,125.77,125.76,45.27139359]
[1742371231911,4.016e-05,125.77,125.76,43.8114]
[1742371243218,4.016e-05,125.77,125.76,45.27136617]
[1742371245125,4.016e-05,125.77,125.76,107.27136617]
[1742371246228,4.016e-05,125.77,125.76,107.27119441]
[1742371247028,4.016e-05,125.77,125.76,45.2712049]
[1742371249327,4.016e-05,125.77,125.76,43.8114]
[1742371249518,4.016e-05,125.77,125.76,45.27120318]
[1742371249922,4.016e-05,125.77,125.76,37.31120318]
[1742371250427,4.016e-05,125.77,125.76,9.41120318]
[1742371250621,4.016e-05,125.77,125.76,35.8114]
[1742371251125,4.016e-05,125.77,125.76,35.8314]
[1742371251428,6.3772,125.84,125.81,7.9482]
[1742371251628,6.3772,125.84,125.81,21.04471208]
[1742371252527,6.3772,125.84,125.81,13.09651208]
[1742371252729,6.4321686,125.84,125.81,0.0569177]
[1742371254733,6.4321686,125.84,125.81,8.0051177]
[1742371255933,6.4321686,125.84,125.82,7.9476]
[1742371257730,6.4321686,125.84,125.82,35.7876]
[1742371261233,6.4321686,125.84,125.82,27.84]
[1742371262136,6.4321686,125.84,125.82,35.7876]
[1742371262726,6.4321686,125.84,125.82,27.84]
[1742371263537,6.4321686,125.84,125.82,35.7875]
[1742371263835,6.4321686,125.84,125.82,40.93651208]
[1742371264039,6.4321686,125.84,125.83,7.947]
[1742371264244,6.4321686,125.84,125.82,40.93651208]
[1742371264639,6.4321686,125.84,125.82,48.88381208]
[1742371265039,6.4321686,125.84,125.82,40.93651208]
[1742371265740,6.4321686,125.84,125.83,7.947]
[1742371265942,6.4321686,125.84,125.82,40.93651208]
[1742371266337,6.4321686,125.84,125.83,7.947]
[1742371268650,6.4321686,125.84,125.83,21.04351208]
[1742371270249,6.4321686,125.84,125.82,48.88391208]
[1742371270951,6.4321686,125.84,125.83,7.947]
[1742371271148,6.4321686,125.84,125.82,40.93651208]
[1742371271445,6.4321686,125.84,125.82,27.84]
[1742371271645,6.4321686,125.84,125.81,13.15342978]
[1742371271852,6.4321686,125.84,125.81,0.0569177]
[1742371272050,6.4321686,125.84,125.81,4.6419]
[1742371273352,6.4321686,125.84,125.81,4.69751836]
[1742371276056,6.4321686,125.84,125.81,17.79403044]
[1742371279557,6.4321686,125.84,125.82,40.91651208]
[1742371279757,2.2562686,125.84,125.83,13.09651208]
[1742371279959,0.0549686,125.84,125.83,21.04351208]
[1742371281254,0.0549686,125.84,125.82,48.86391208]
[1742371282857,0.0549686,125.84,125.82,27.82]
[1742371283352,8.0015686,125.84,125.81,8.00361836]
[1742371283553,21.09808068,125.84,125.81,0.05561836]
[1742371283757,2.1226,125.83,125.81,0.05561836]
[1742371284660,2.1226,125.83,125.81,8.00381836]
[1742371288959,2.1226,125.83,125.82,7.9477]
[1742371290658,2.1226,125.83,125.81,8.00361836]
[1742371291058,15.21911208,125.83,125.81,0.05561836]
[1742371291557,23.16641208,125.83,125.81,0.05561836]
[1742371292159,10.0699,125.83,125.81,0.05561836]
[1742371293563,21.04421208,125.82,125.77,40.95651208]
[1742371293754,13.09651208,125.81,125.76,13.09651208]
[1742371293961,48.90531208,125.81,125.76,40.95651208]
[1742371294152,40.95651208,125.81,125.76,40.95651208]
[1742371294561,7.949,125.8,125.77,7.9505]
[1742371294762,8.00633375,125.8,125.77,8.00442939]
[1742371295161,5.53168886,125.79,125.77,8.00442939]
[1742371295361,5.53168886,125.78,125.77,8.00442939]
[1742371297161,5.53168886,125.78,125.77,21.10094147]
[1742371297365,5.52861501,125.78,125.77,21.10094147]
[1742371298064,0.05733375,125.8,125.78,7.9497]
[1742371298265,0.05733375,125.8,125.79,13.09651208]
[1742371298667,0.05733375,125.8,125.79,21.04601208]
[1742371306165,0.05733375,125.8,125.78,35.77]
[1742371306370,0.05733375,125.8,125.78,7.95]
[1742371307278,0.05733375,125.8,125.77,13.15044147]
[1742371307776,0.05733375,125.8,125.78,7.9496]
[1742371307974,0.05733375,125.8,125.77,13.15044147]
[1742371308373,0.05733375,125.8,125.78,7.9496]
[1742371310476,0.05733375,125.8,125.77,13.15044147]
[1742371311477,0.05733375,125.8,125.78,7.9502]
[1742371313177,0.05733375,125.8,125.77,13.15044147]
[1742371314478,0.05733375,125.8,125.78,7.9496]
[1742371314679,0.05733375,125.8,125.77,13.15044147]
[1742371315280,0.05733375,125.8,125.79,7.9495]
[1742371320681,0.05733375,125.8,125.79,21.04601208]
[1742371321482,0.05733375,125.8,125.79,7.9495]
[1742371327089,0.05733375,125.8,125.79,21.04601208]
[1742371331593,0.05733375,125.8,125.79,7.9495]
[1742371335096,0.05733375,125.8,125.79,21.04601208]
[1742371338499,0.00171538,125.8,125.79,21.04601208]
[1742371340797,15.08891208,125.87,125.83,7.9465]
[1742371340998,1.9924,125.87,125.82,13.09651208]
[1742371341194,25.26631208,125.88,125.83,13.09651208]
[1742371341398,53.06631208,125.88,125.84,7.9461]
[1742371341598,13.09651208,125.87,125.83,40.89651208]
[1742371342101,13.09651208,125.87,125.84,0.05039132]
[1742371342102,0.06086946,125.86,125.84,0.05039132]
[1742371342801,0.06086946,125.86,125.84,7.99669132]
[1742371344313,0.06086946,125.86,125.85,7.9458]
[1742371375528,0.06086946,125.86,125.85,48.84231208]
[1742371377440,7.9421,125.91,125.87,7.9443]
[1742371377639,7.9421,125.91,125.87,21.04081208]
[1742371378138,50.94461208,125.92,125.87,21.04081208]
[1742371378535,50.94461208,125.92,125.87,48.84081208]
[1742371378737,50.94461208,125.92,125.88,0.05839505]
[1742371378738,0.05720264,125.91,125.88,0.05839505]
[1742371379239,7.99920264,125.91,125.88,0.05839505]
[1742371379941,7.99920264,125.91,125.88,8.00229505]
[1742371380337,0.05720264,125.91,125.88,13.15490713]
[1742371380548,0.05720264,125.91,125.89,13.09651208]
[1742371380842,0.05720264,125.91,125.9,7.9426]
[1742371381255,0.05720264,125.91,125.9,21.03911208]
[1742371384143,27.8,125.96,125.92,7.9408]
[1742371384346,2.0957,125.97,125.93,13.09651208]
[1742371384537,2.0957,125.97,125.93,21.03711208]
[1742371384538,37.8345,125.97,125.93,21.03711208]
[1742371385245,0.05958109,125.96,125.94,0.05892741]
[1742371387250,7.99848109,125.96,125.94,0.05892741]
[1742371392853,7.9394,125.95,125.94,0.05892741]
[1742371394857,7.99878109,125.96,125.94,0.05892741]
[1742371395160,13.15609317,125.96,125.94,0.05892741]
[1742371395654,0.05958109,125.96,125.94,0.05892741]
[1742371395856,7.9394,125.95,125.94,0.05892741]
[1742371396960,7.99868109,125.96,125.94,0.05892741]
[1742371397252,0.05958109,125.96,125.94,7.99892741]
[1742371397458,0.05958109,125.96,125.94,21.09543949]
[1742371399153,0.05958109,125.96,125.95,21.03591208]
[1742371400754,0.05958109,125.96,125.95,48.81591208]
[1742371402857,0.05958109,125.96,125.94,0.05892741]
[1742371403256,7.99868109,125.96,125.94,0.05892741]
[1742371404658,0.05958109,125.96,125.94,7.99892741]
[1742371406163,7.99838109,125.96,125.94,7.99892741]
[1742371406360,0.05958109,125.96,125.94,7.99892741]
[1742371407364,0.05958109,125.96,125.94,21.09543949]
[1742371407662,7.99848109,125.96,125.94,21.09543949]
[1742371408466,7.99848109,125.96,125.94,0.05892741]
[1742371409262,7.99848109,125.96,125.94,7.99892741]
[1742371410766,0.05958109,125.96,125.94,7.99892741]
[1742371410970,0.05958109,125.96,125.95,7.9394]
[1742371412767,0.05958109,125.96,125.94,21.09503949]
[1742371415364,0.05958109,125.96,125.95,7.9394]
[1742371418768,0.05958109,125.96,125.95,21.03591208]
[1742371430183,0.05958109,125.96,125.95,48.81591208]
[1742371432278,0.05958109,125.96,125.95,50.90441208]
[1742371434483,27.78,126.01,125.97,7.9378]
[1742371434682,35.716,126.01,125.98,13.09651208]
[1742371435681,35.76788177,126.01,125.98,13.15622474]
[1742371436883,7.98788177,126.01,125.98,13.15622474]
[1742371437186,7.98788177,126.01,125.98,21.09362474]
[1742371439978,0.05188177,126.01,125.98,13.15622474]
[1742371440285,0.05188177,126.01,125.99,13.09651208]
[1742371440475,0.05188177,126.01,125.99,7.9366]
[1742371440682,0.05188177,126.01,125.98,13.15622474]
[1742371441085,0.05188177,126.01,125.99,7.9366]
[1742371441277,0.05188177,126.01,125.98,13.15622474]
[1742371441587,0.05188177,126.01,126.0,7.9363]
[1742371441990,0.05188177,126.01,125.98,13.15622474]
[1742371442588,0.05188177,126.01,126.0,7.9363]
[1742371442786,0.05188177,126.01,125.99,13.09651208]
[1742371443387,0.05188177,126.01,125.99,21.03311208]
[1742371445890,0.05188177,126.01,125.99,7.9366]
[1742371446589,7.98758177,126.01,125.99,7.9366]
[1742371447191,7.9363,126.0,125.98,7.99691266]
[1742371447388,7.9363,126.0,125.98,0.05971266]
[1742371448091,7.9363,126.0,125.98,7.99721266]
[1742371451495,7.9363,126.0,125.98,0.05971266]
[1742371451694,7.98788177,126.01,125.98,13.15622474]
[1742371451890,0.05188177,126.01,125.99,13.09651208]
[1742371452288,0.05188177,126.01,125.99,21.03291208]
[1742371452892,0.05188177,126.01,126.0,7.9363]
[1742371454291,0.05188177,126.01,125.99,21.03311208]
[1742371454998,0.05188177,126.01,125.98,7.99711266]
[1742371455190,13.14839385,126.01,125.98,0.05971266]
[1742371455495,7.9366,126.0,125.98,0.05971266]
[1742371457990,13.14839385,126.01,125.98,0.05971266]
[1742371457991,13.09651208,125.99,125.98,0.05971266]
[1742371458696,21.03341208,125.99,125.98,0.05971266]
[1742371459599,21.03341208,125.99,125.95,294.87541208]
[1742371459600,7.938,125.98,125.95,7.9389]
[1742371460298,7.9386,125.97,125.94,21.03631208]
[1742371460499,7.9386,125.97,125.94,13.09651208]
[1742371460889,7.99173542,125.97,125.94,13.14702387]
[1742371461501,7.99173542,125.97,125.95,7.9392]
[1742371461703,0.05313542,125.97,125.95,7.9392]
[1742371462502,7.99133542,125.97,125.95,7.9392]
[1742371462694,0.05313542,125.97,125.94,21.08682387]
[1742371463501,13.1496475,125.97,125.94,7.99031179]
[1742371464401,0.05313542,125.97,125.94,21.08682387]
[1742371464597,7.99163542,125.97,125.94,21.08682387]
[1742371464791,7.99163542,125.97,125.95,7.9393]
[1742371464997,0.05313542,125.97,125.95,7.9393]
[1742371466401,7.99143542,125.97,125.95,7.9393]
[1742371466602,7.99143542,125.97,125.94,21.08682387]
[1742371467202,7.99143542,125.97,125.95,7.9392]
[1742371467502,0.05313542,125.97,125.95,7.9392]
[1742371469105,0.05313542,125.97,125.95,21.03571208]
[1742371470401,7.99143542,125.97,125.95,21.03571208]
[1742371470601,7.99143542,125.97,125.95,7.9392]
[1742371470803,7.99143542,125.97,125.94,21.08672387]
[1742371472411,0.05313542,125.97,125.95,7.9393]
[1742371473211,7.99163542,125.97,125.94,21.08672387]
[1742371474610,7.99163542,125.97,125.94,13.14702387]
[1742371474815,7.99163542,125.97,125.95,7.9394]
[1742371475216,7.9388,125.96,125.94,21.08682387]
[1742371475711,0.05313542,125.97,125.94,13.14702387]
[1742371475910,7.99163542,125.97,125.95,7.9394]
[1742371476108,0.05313542,125.97,125.96,6.54825604]
[1742371476308,0.05313542,125.97,125.96,21.03531208]
[1742371496029,0.05313542,125.97,125.96,7.9388]
[1742371500731,0.05313542,125.97,125.95,6.54825604]
[1742371500935,0.05313542,125.97,125.94,42.99352387]
[1742371501335,0.05313542,125.97,125.95,7.9388]
[1742371501631,0.05313542,125.97,125.94,42.99352387]
[1742371501837,0.05313542,125.97,125.95,7.9394]
[1742371502737,0.05313542,125.97,125.96,7.9388]
[1742371503129,0.05313542,125.97,125.94,42.99352387]
[1742371503535,0.05313542,125.97,125.95,21.03551208]
[1742371503735,0.05313542,125.97,125.95,13.09651208]
[1742371504837,0.05313542,125.97,125.96,7.9388]
[1742371505139,0.05313542,125.97,125.95,21.03571208]
[1742371505638,7.99133542,125.97,125.95,21.03571208]
[1742371506139,7.99133542,125.97,125.94,10.07671179]
[1742371506339,7.99133542,125.97,125.94,50.93322387]
[1742371506534,7.99133542,125.97,125.94,42.99352387]
[1742371507837,7.99133542,125.97,125.94,50.93332387]
[1742371509444,7.99133542,125.97,125.95,21.03591208]
[1742371510139,0.05313542,125.97,125.96,7.9388]
[1742371510541,0.05313542,125.97,125.96,21.03531208]
[1742371511336,0.05313542,125.97,125.95,21.03561208]
[1742371512445,7.99133542,125.97,125.95,21.03561208]
[1742371512643,0.05313542,125.97,125.95,21.03561208]
[1742371512942,0.05313542,125.97,125.96,7.9388]
[1742371516141,0.05313542,125.97,125.96,21.03531208]
[1742371516947,29.8876,126.02,125.99,7.9369]
[1742371517945,37.8232,126.02,125.99,7.9369]
[1742371518141,7.9914593,126.02,125.99,7.9976283]
[1742371518349,0.0558593,126.02,126.0,21.03271208]
[1742371519850,7.9909593,126.02,126.0,21.03271208]
[1742371520143,13.15237138,126.02,125.99,0.0607283]
[1742371520544,13.09651208,126.01,125.99,0.0607283]
[1742371521846,7.9363,126.0,125.99,0.0607283]
[1742371522147,7.936,126.01,125.99,0.0607283]
[1742371523341,7.936,126.01,125.99,7.9975283]
[1742371524550,37.9448593,126.02,125.99,7.9975283]
[1742371526548,13.09651208,126.0,125.99,0.0607283]
[1742371526746,40.85651208,126.0,125.94,42.94301208]
[1742371526946,7.9378,125.98,125.95,7.9391]
[1742371527150,35.6978,125.98,125.95,7.9391]
[1742371527846,35.6978,125.98,125.95,7.994302]
[1742371528054,35.75124382,125.98,125.95,7.994302]
[1742371529853,35.75124382,125.98,125.95,21.09081408]
[1742371531258,7.9383,125.97,125.95,21.09081408]
[1742371532058,7.9383,125.97,125.95,0.055202]
[1742371533255,7.9383,125.97,125.95,7.994602]
[1742371534660,35.75134382,125.98,125.95,7.994602]
[1742371534859,27.81344382,125.98,125.97,21.03471208]
[1742371535364,27.81344382,125.98,125.95,0.055202]
[1742371535365,27.81344382,125.98,125.96,21.03511208]
[1742371535960,27.81344382,125.98,125.96,13.09651208]
[1742371536663,27.81344382,125.98,125.97,7.9382]
[1742371537357,0.05344382,125.98,125.97,7.9382]
[1742371537561,0.05344382,125.98,125.97,21.03471208]
[1742371538754,0.05344382,125.98,125.97,48.79471208]
[1742371538959,27.76,126.02,126.0,7.936]
[1742371539361,35.6948,126.03,126.0,7.936]
[1742371539763,35.6948,126.03,126.0,21.03251208]
[1742371540260,35.74814035,126.03,126.01,7.9356]
[1742371540663,27.81334035,126.03,126.01,7.9356]
[1742371540964,0.05334035,126.03,126.01,7.9356]
[1742371541865,0.05334035,126.03,126.0,21.08654912]
[1742371541866,7.98784035,126.03,126.0,21.08654912]
[1742371542268,7.98784035,126.03,126.0,13.15054912]
[1742371543270,7.98784035,126.03,126.01,7.9354]
[1742371543575,0.05334035,126.03,126.01,7.9354]
[1742371544565,0.05334035,126.03,126.02,7.935]
[1742371545265,0.05334035,126.03,126.01,21.03191208]
[1742371545677,40.90985243,126.03,126.0,0.05403704]
[1742371545878,7.9352,126.02,126.0,0.05403704]
[1742371547479,7.9357,126.01,126.0,0.05403704]
[1742371558789,7.9353,126.02,126.0,7.99023704]
[1742371559190,7.9353,126.02,126.0,0.05403704]
[1742371559591,7.9353,126.02,126.0,7.99023704]
[1742371560992,7.9353,126.02,126.0,0.05403704]
[1742371564194,35.74804035,126.03,126.0,7.99003704]
[1742371564693,7.9351,126.02,126.0,7.99003704]
[1742371566388,48.84465243,126.03,126.0,7.99003704]
[1742371567094,35.74814035,126.03,126.0,7.99003704]
[1742371567796,7.935,126.02,126.0,7.99003704]
[1742371569495,7.935,126.02,126.0,0.05403704]
[1742371571093,48.79221208,126.01,126.0,0.05403704]
[1742371572098,7.937,125.99,125.96,13.09651208]
[1742371572799,7.937,125.99,125.97,7.9382]
[1742371573299,7.98931887,125.99,125.97,7.99229241]
[1742371576899,7.98931887,125.99,125.97,0.05409241]
[1742371577695,7.98931887,125.99,125.97,7.99219241]
[1742371579401,7.9376,125.98,125.97,0.05409241]
[1742371580501,21.03411208,125.98,125.97,0.05409241]
[1742371581200,7.9376,125.98,125.97,0.05409241]
[1742371586608,48.84613095,125.99,125.97,0.05409241]
[1742371586808,35.74961887,125.99,125.97,0.05409241]
[1742371587308,27.81231887,125.99,125.97,13.15060449]
[1742371587796,27.81231887,125.99,125.97,21.08850449]
[1742371589611,0.05231887,125.99,125.98,21.03411208]
[1742371589907,27.76,126.03,125.98,13.09651208]
[1742371590114,35.6947,126.03,126.0,21.03231208]
[1742371590805,35.6947,126.03,126.01,7.9357]
[1742371591309,35.75548926,126.03,126.01,7.9357]
[1742371591912,35.75548926,126.03,126.0,21.08774557]
[1742371592409,7.9351,126.02,126.0,21.08774557]
[1742371592612,7.9351,126.02,126.0,7.99123349]
[1742371593410,35.75548926,126.03,126.0,7.99123349]
[1742371595108,0.06078926,126.03,126.01,13.09651208]
[1742371595309,27.82078926,126.03,126.01,13.09651208]
[1742371596113,27.82078926,126.03,126.01,21.03181208]
[1742371596305,27.82078926,126.03,126.01,7.9353]
[1742371596805,27.82078926,126.03,126.0,13.15174557]
[1742371597106,35.75528926,126.03,126.0,7.99123349]
[1742371597412,27.82078926,126.03,126.0,0.05523349]
[1742371597617,7.9357,126.01,126.0,0.05523349]
[1742371599813,7.9353,126.02,126.0,7.99143349]
[1742371600410,7.9353,126.02,126.0,0.05523349]
[1742371603012,7.9357,126.01,126.0,0.05523349]
[1742371603717,7.9354,126.02,126.0,0.05523349]
[1742371604919,7.9357,126.01,126.0,0.05523349]
[1742371605916,48.79221208,126.01,126.0,0.05523349]
[1742371608124,7.9379,125.98,125.95,13.09651208]
[1742371608717,7.9379,125.98,125.95,21.03561208]
[1742371608918,7.9379,125.98,125.95,7.9391]
[1742371609321,7.99247832,125.98,125.95,7.9948994]
[1742371612023,7.99247832,125.98,125.96,7.9388]
[1742371613328,0.05457832,125.98,125.97,7.9382]
[1742371623526,7.99217832,125.98,125.96,21.03501208]
[1742371623828,7.99217832,125.98,125.96,7.9385]
[1742371624225,0.05457832,125.98,125.96,21.03501208]
[1742371626138,0.05457832,125.98,125.97,13.09651208]
[1742371626337,0.05457832,125.98,125.97,21.03471208]
[1742371626737,27.76,126.02,125.97,13.09651208]
[1742371627040,27.76,126.02,126.0,21.03251208]
[1742371627843,0.05100993,126.02,126.01,21.03221208]
[1742371628034,27.76,126.05,126.01,13.09651208]
[1742371628239,27.76,126.05,126.0,0.05409043]
[1742371628240,43.93550837,126.06,126.04,13.09651208]
[1742371628438,51.86810837,126.06,126.04,21.03031208]
[1742371628637,43.93550837,126.06,126.04,21.03031208]
[1742371629341,43.99363449,126.06,126.04,21.08089858]
[1742371629532,43.99363449,126.06,126.04,13.14709858]
[1742371630940,0.05812612,126.06,126.04,13.14709858]
[1742371631834,0.05812612,126.06,126.05,13.09651208]
[1742371632237,2.1507,126.12,126.05,40.85651208]
[1742371632437,7.9311,126.09,126.07,13.09651208]
[1742371632937,40.85651208,126.11,126.06,13.09651208]
[1742371633140,13.09651208,126.1,126.06,13.09651208]
[1742371633335,27.76,126.09,126.06,13.09651208]
[1742371633538,27.81497974,126.09,126.07,0.05391131]
[1742371634341,7.9313,126.08,126.07,0.05391131]
[1742371634543,21.02781208,126.08,126.07,0.05391131]
[1742371635545,7.9338,126.04,126.03,13.09651208]
[1742371635844,40.83651208,126.05,126.0,13.09651208]
[1742371636047,40.85651208,126.04,125.99,294.83311208]
[1742371636344,7.9357,126.01,125.99,294.83311208]
[1742371636743,0.06023772,126.01,125.99,294.88748962]
[1742371637543,0.06023772,126.01,125.99,286.95088962]
[1742371637746,0.06023772,126.01,125.99,273.85437754]
[1742371637941,27.80023772,126.01,125.99,0.05437754]
[1742371638144,13.09651208,126.0,125.96,21.03501208]
[1742371638539,48.77231208,126.01,125.97,21.03441208]
[1742371639245,0.05266017,126.0,125.98,13.15472622]
[1742371639544,0.05266017,126.0,125.99,13.09651208]
[1742371639737,0.05266017,126.0,125.99,21.03341208]
[1742371641649,27.78,126.03,126.02,7.935]
[1742371641850,21.02991208,126.05,126.02,7.935]
[1742371642049,35.7334,126.05,126.02,7.935]
[1742371642947,35.7334,126.05,126.03,7.9343]
[1742371642948,27.86076961,126.05,126.03,7.9343]
[1742371643251,27.86076961,126.05,126.02,13.15304756]
[1742371643645,27.86076961,126.05,126.02,21.08754756]
[1742371643851,27.86076961,126.05,126.02,13.15304756]
[1742371644148,0.06076961,126.05,126.02,13.15304756]
[1742371644845,0.06076961,126.05,126.03,13.09651208]
[1742371645050,0.06076961,126.05,126.04,13.09651208]